bitfinex/quotes_ETHUSD_20250519
["timestamp","ask_amount","ask_price","bid_price","bid_amount"]
[1747684025073,3.9756689,2515.3,2515.2,1.66195112]
[1747684025274,3.9756689,2515.3,2515.2,10.16695112]
[1747684027403,3.9756689,2515.3,2515.2,13.16695112]
[1747684027674,3.9756689,2515.3,2515.2,10.16695112]
[1747684028096,3.97566595,2515.4,2515.2,10.16695112]
[1747684028295,3.97544607,2515.5,2515.2,10.16695112]
[1747684028616,3.97565476,2515.4,2515.2,10.16695112]
[1747684028918,3.97565476,2515.4,2515.3,0.12415112]
[1747684028919,3.97551085,2515.4,2515.3,0.12415112]
[1747684029086,3.97483876,2515.9,2515.4,1.5353]
[1747684029275,3.97535281,2515.5,2515.4,1.5353]
[1747684029807,3.97598505,2515.1,2515.0,14.80146253]
[1747684030015,3.97598505,2515.1,2515.0,8.84246253]
[1747684030315,3.97598505,2515.1,2515.0,17.34646253]
[1747684030693,3.97598505,2515.1,2515.0,7.43131572]
[1747684030881,3.97598505,2515.1,2515.0,15.93531572]
[1747684030882,4.77116981,2515.1,2515.0,15.93531572]
[1747684031078,4.77116981,2515.1,2515.0,15.81116253]
[1747684031297,3.97598505,2515.1,2515.0,15.81116253]
[1747684031496,3.97598505,2515.1,2515.0,17.34646253]
[1747684032345,3.97598505,2515.1,2515.0,17.47061857]
[1747684032553,3.97598505,2515.1,2515.0,20.47061857]
[1747684032750,3.97598505,2515.1,2515.0,10.43131857]
[1747684032930,4.77116981,2515.1,2515.0,18.93531857]
[1747684033329,4.77116981,2515.1,2515.0,18.81116253]
[1747684034219,3.97598505,2515.1,2515.0,18.81116253]
[1747684036014,3.97598505,2515.1,2515.0,15.81116253]
[1747684038062,3.97598505,2515.1,2515.0,18.81116253]
[1747684039053,3.97598505,2515.1,2515.0,15.81116253]
[1747684041168,5.49698505,2515.1,2515.0,15.81116253]
[1747684041372,6.44426981,2515.1,2515.0,7.30716253]
[1747684041675,6.44426981,2515.1,2515.0,15.77716253]
[1747684042079,14.44426981,2515.1,2515.0,15.77716253]
[1747684042756,14.44426981,2515.1,2515.0,7.30716253]
[1747684043076,14.44426981,2515.1,2515.0,15.77716253]
[1747684043227,4.92326981,2515.1,2515.0,15.77716253]
[1747684043428,3.97582413,2515.3,2515.1,1.5853]
[1747684043830,1.5708,2515.9,2515.2,0.1241435]
[1747684044032,3.97543677,2515.5,2515.4,1.5366]
[1747684044266,3.97543677,2515.5,2515.4,10.1307435]
[1747684045361,3.9752642,2515.6,2515.4,10.1307435]
[1747684045570,3.97493556,2515.8,2515.4,11.73971785]
[1747684045768,3.97508367,2515.7,2515.4,11.73971785]
[1747684045969,3.97519478,2515.6,2515.5,0.1241435]
[1747684046395,3.97512295,2515.7,2515.5,0.1241435]
[1747684046559,3.97519478,2515.6,2515.5,0.1241435]
[1747684046998,3.97519478,2515.6,2515.5,0.49381409]
[1747684047995,3.97508869,2515.7,2515.5,0.49381409]
[1747684048397,3.97508869,2515.7,2515.5,14.79581409]
[1747684048690,3.97519478,2515.6,2515.5,14.79581409]
[1747684049297,3.97519478,2515.6,2515.5,14.4261435]
[1747684049995,3.97510349,2515.7,2515.5,14.4261435]
[1747684050565,3.97519478,2515.6,2515.5,14.4261435]
[1747684051597,3.97519478,2515.6,2515.5,0.1241435]
[1747684051798,3.9756689,2515.3,2515.2,8.469]
[1747684052363,3.9756689,2515.3,2515.2,8.59313966]
[1747684053565,3.9756689,2515.3,2515.2,0.12413966]
[1747684053902,3.9756689,2515.3,2515.2,8.59313966]
[1747684054200,3.9756689,2515.3,2515.2,8.469]
[1747684055395,3.9756689,2515.3,2515.2,10.09744079]
[1747684055762,1.5999,2515.9,2515.2,11.83790112]
[1747684056100,3.97504397,2515.7,2515.2,9.9733]
[1747684056271,3.97559623,2515.4,2515.2,9.9733]
[1747684056799,3.97562022,2515.4,2515.2,9.9733]
[1747684057293,3.97562022,2515.4,2515.3,0.12413439]
[1747684057498,3.97542706,2515.5,2515.3,9.13387783]
[1747684057682,3.97542706,2515.5,2515.4,0.12413439]
[1747684061605,3.97551085,2515.4,2515.3,8.0]
[1747684062307,3.97551085,2515.4,2515.3,8.12413346]
[1747684063173,3.97551085,2515.4,2515.3,22.55113346]
[1747684063374,3.97551085,2515.4,2515.3,8.12413346]
[1747684063684,3.97551085,2515.4,2515.3,16.59313346]
[1747684064018,4.77060464,2515.4,2515.3,0.12413346]
[1747684064306,5.32060464,2515.4,2515.3,0.12413346]
[1747684064467,5.32060464,2515.4,2515.1,8.469]
[1747684064468,3.97582697,2515.2,2515.1,8.469]
[1747684065392,5.63602697,2515.2,2515.1,8.469]
[1747684066182,5.63602697,2515.2,2515.0,7.30716253]
[1747684066183,3.97598505,2515.1,2515.0,15.77616253]
[1747684066384,5.33475668,2515.1,2515.0,15.77616253]
[1747684067114,5.88475668,2515.1,2515.0,15.77616253]
[1747684067406,5.88475668,2515.1,2515.0,7.30716253]
[1747684067611,7.51055668,2515.1,2515.0,7.30716253]
[1747684067788,9.64365803,2515.1,2515.0,7.30716253]
[1747684069400,6.96055668,2515.1,2515.0,7.30716253]
[1747684071016,7.51055668,2515.1,2515.0,7.30716253]
[1747684072702,6.96055668,2515.1,2515.0,7.30716253]
[1747684074621,3.97598505,2515.1,2515.0,15.74316253]
[1747684075889,5.59528505,2515.1,2515.0,7.30716253]
[1747684076312,6.14528505,2515.1,2515.0,7.30716253]
[1747684076486,14.14528505,2515.1,2515.0,7.30716253]
[1747684076693,18.57992622,2515.1,2515.0,7.30716253]
[1747684076907,20.83550154,2515.1,2515.0,6.63538434]
[1747684077249,20.83550154,2515.1,2515.0,6.15478507]
[1747684077651,16.40086037,2515.1,2515.0,6.15478507]
[1747684078347,7.85086037,2515.1,2515.0,6.15478507]
[1747684078554,3.97598505,2515.1,2515.0,6.15478507]
[1747684080212,3.97598505,2515.1,2515.0,14.59078507]
[1747684082136,5.54350401,2515.6,2515.1,1.6155]
[1747684082365,3.97582697,2515.2,2515.1,1.6155]
[1747684084163,3.97598505,2515.1,2515.0,14.59078507]
[1747684085178,3.97598505,2515.1,2515.0,6.15478507]
[1747684085343,3.97598505,2515.1,2515.0,14.59078507]
[1747684088454,3.97598505,2515.1,2515.0,16.81160358]
[1747684089177,3.97598505,2515.1,2515.0,8.37560358]
[1747684089483,3.97598505,2515.1,2515.0,14.59078507]
[1747684091777,3.97598505,2515.1,2515.0,14.7149377]
[1747684092208,5.55358505,2515.1,2515.0,6.2789377]
[1747684092494,5.55358505,2515.1,2515.0,6.15478507]
[1747684093607,3.97598505,2515.1,2515.0,6.15478507]
[1747684094408,3.9754717,2515.5,2515.1,8.0]
[1747684094565,1.5965,2516.1,2515.2,1.5007]
[1747684094899,1.5965,2516.1,2515.3,0.12414712]
[1747684095063,3.97535281,2515.5,2515.4,14.395]
[1747684095260,3.97529551,2515.6,2515.4,14.395]
[1747684095483,3.97535281,2515.5,2515.4,15.99698471]
[1747684095796,3.97535281,2515.5,2515.4,23.99698471]
[1747684096094,1.5965,2516.1,2515.5,9.5007]
[1747684096281,3.97519478,2515.6,2515.5,9.5007]
[1747684096797,3.97519478,2515.6,2515.5,9.62482351]
[1747684098819,3.97519478,2515.6,2515.5,11.64896241]
[1747684098991,3.97512829,2515.7,2515.5,11.64896241]
[1747684099794,3.97465202,2516.0,2515.6,32.698704]
[1747684099981,3.97465202,2516.0,2515.6,14.302]
[1747684100188,3.9744413,2516.1,2515.6,14.302]
[1747684100189,3.97445503,2516.1,2515.9,1.5947]
[1747684100389,3.97430675,2516.2,2516.0,8.435]
[1747684100589,3.97440483,2516.1,2516.0,8.435]
[1747684101898,1.5913,2516.8,2516.1,8.0]
[1747684102095,0.29184918,2517.6,2516.3,9.6373]
[1747684102307,0.29184918,2517.6,2516.5,1.6373]
[1747684102308,3.97204947,2517.6,2516.5,1.6373]
[1747684102514,3.97356161,2516.7,2516.6,22.3]
[1747684102670,3.97356161,2516.7,2516.6,38.818]
[1747684102871,3.97356161,2516.7,2516.6,36.657]
[1747684103511,3.97323556,2516.9,2516.7,8.0]
[1747684103697,3.97329942,2516.8,2516.7,8.0]
[1747684106315,1.5913,2517.4,2516.7,8.0]
[1747684106316,5.56378251,2517.4,2516.7,8.0]
[1747684106497,3.97328101,2516.9,2516.7,8.0]
[1747684107900,3.97301942,2517.0,2516.7,8.0]
[1747684108210,9.44316688,2531.9,2516.9,8.0]
[1747684108211,1.5913,2517.7,2516.9,8.0]
[1747684108533,3.97259266,2517.3,2516.9,8.0]
[1747684108822,3.97282587,2517.1,2517.0,0.03466522]
[1747684108986,3.97282587,2517.1,2517.0,16.43166522]
[1747684109189,5.56325495,2517.7,2517.0,16.43166522]
[1747684109384,3.97282587,2517.1,2517.0,16.43166522]
[1747684109608,3.93816203,2517.1,2517.0,17.99898471]
[1747684110214,3.93816203,2517.1,2517.0,18.02946053]
[1747684111292,3.97275932,2517.2,2517.0,18.02946053]
[1747684111515,1.5913,2517.7,2517.1,8.0]
[1747684111796,3.97235242,2517.4,2517.3,1.5273]
[1747684112225,3.97235242,2517.4,2517.3,1.55777218]
[1747684112742,3.97235242,2517.4,2517.3,0.03047218]
[1747684113255,1.525,2517.9,2517.3,0.03047218]
[1747684113256,3.97208605,2517.6,2517.3,0.03047218]
[1747684113444,1.525,2517.9,2517.4,13.956]
[1747684113747,3.97203686,2517.6,2517.5,16.42546976]
[1747684116351,3.97164546,2517.9,2517.6,1.6627]
[1747684116554,3.97187909,2517.7,2517.6,23.9557]
[1747684116756,3.97187909,2517.7,2517.6,36.642]
[1747684117743,3.97183891,2517.8,2517.6,36.642]
[1747684117946,3.97187909,2517.7,2517.6,36.642]
[1747684118336,3.97180957,2517.8,2517.6,36.642]
[1747684118855,3.97187909,2517.7,2517.6,36.642]
[1747684119459,3.97187909,2517.7,2517.6,14.293]
[1747684119674,6.38714796,2517.7,2517.6,22.686]
[1747684121035,6.93714796,2517.7,2517.6,14.293]
[1747684121231,6.93714796,2517.7,2517.5,0.03046976]
[1747684121232,6.14293686,2517.6,2517.5,0.03046976]
[1747684121437,10.57757803,2517.6,2517.5,0.03046976]
[1747684122179,18.57757803,2517.6,2517.5,0.03046976]
[1747684122476,29.70214159,2517.6,2517.5,0.03046976]
[1747684122656,6.07791519,2516.6,2516.5,8.393]
[1747684122833,4.52377309,2516.5,2516.4,14.29]
[1747684123030,3.97377309,2516.5,2515.6,15.9117]
[1747684123235,3.97472077,2515.9,2515.8,5.954]
[1747684125269,1.5543,2516.6,2515.8,5.954]
[1747684125470,3.97323155,2516.9,2515.9,11.97471084]
[1747684125637,3.97410585,2516.3,2516.0,1.6207]
[1747684125836,3.97424912,2516.2,2516.0,1.6207]
[1747684126037,3.97424912,2516.2,2516.1,8.0]
[1747684126962,3.97407795,2516.4,2516.1,8.0]
[1747684127182,3.97408894,2516.3,2516.2,8.395]
[1747684127486,3.97408894,2516.3,2516.2,9.395]
[1747684132497,3.97346455,2516.7,2516.2,9.395]
[1747684132498,3.97385602,2516.5,2516.2,11.29657]
[1747684132661,3.97385602,2516.5,2516.2,25.59057]
[1747684133086,3.97314432,2516.9,2516.2,25.59057]
[1747684133280,3.97314432,2516.9,2516.2,23.689]
[1747684133491,3.9738908,2516.5,2516.2,23.689]
[1747684133674,3.97396499,2516.4,2516.2,23.689]
[1747684133875,3.97408894,2516.3,2516.2,23.689]
[1747684136084,3.97389972,2516.5,2516.2,33.444964]
[1747684136395,3.97402741,2516.4,2516.2,23.689]
[1747684137097,3.97408894,2516.3,2516.2,21.25]
[1747684137302,3.97408894,2516.3,2516.2,29.611]
[1747684140561,3.97408894,2516.3,2516.2,39.796278]
[1747684140764,3.97408894,2516.3,2516.2,36.240958]
[1747684141209,3.97408894,2516.3,2516.2,29.611]
[1747684141511,3.97408894,2516.3,2516.2,31.9089]
[1747684141973,3.97408894,2516.3,2516.2,29.611]
[1747684142515,3.97408894,2516.3,2516.2,31.9089]
[1747684143095,3.97408894,2516.3,2516.2,23.655]
[1747684143298,3.97408894,2516.3,2516.2,29.611]
[1747684144503,3.97382272,2516.5,2516.2,35.671]
[1747684144714,3.97382272,2516.5,2516.2,29.611]
[1747684144893,3.97393228,2516.4,2516.2,29.611]
[1747684145511,3.97408894,2516.3,2516.2,29.611]
[1747684145717,3.97408894,2516.3,2516.2,34.2589]
[1747684146106,3.97408894,2516.3,2516.2,33.2199]
[1747684147691,3.97408894,2516.3,2516.2,33.34398421]
[1747684147893,3.97408894,2516.3,2516.2,33.64157421]
[1747684148209,5.47397004,2516.7,2516.2,33.64157421]
[1747684148408,3.97408894,2516.3,2516.2,29.73508421]
[1747684148710,3.97408894,2516.3,2516.2,33.58875]
[1747684148905,3.97408894,2516.3,2516.2,29.611]
[1747684149633,3.97408894,2516.3,2516.2,29.73509092]
[1747684149806,3.97408894,2516.3,2516.2,15.41809092]
[1747684150011,3.97408894,2516.3,2516.2,23.77909092]
[1747684150307,6.30359113,2516.3,2516.2,23.655]
[1747684150899,3.97406123,2516.4,2516.2,23.655]
[1747684151104,3.97408894,2516.3,2516.2,23.655]
[1747684151302,1.5605,2516.6,2516.2,37.350759]
[1747684151303,3.97370751,2516.6,2516.2,37.350759]
[1747684151515,3.97383789,2516.5,2516.2,23.655]
[1747684151830,3.97405456,2516.4,2516.3,14.44107956]
[1747684151999,3.97405456,2516.4,2516.3,8.48507956]
[1747684152386,3.97405456,2516.4,2516.3,8.361]
[1747684152785,1.5009,2516.8,2516.3,8.361]
[1747684153024,3.97383569,2516.5,2516.3,8.361]
[1747684153219,3.97383569,2516.5,2516.4,0.12407922]
[1747684153384,3.97351237,2516.7,2516.4,0.12407922]
[1747684153586,3.97361519,2516.6,2516.5,0.12407922]
[1747684154227,1.5285,2517.1,2516.5,0.12407922]
[1747684154228,3.97354253,2516.7,2516.5,0.12407922]
[1747684154411,3.97354253,2516.7,2516.5,1.5917]
[1747684154615,3.97354253,2516.7,2516.5,3.79678656]
[1747684154832,3.97354253,2516.7,2516.6,0.12407922]
[1747684155006,3.9733832,2516.8,2516.6,0.12407922]
[1747684155322,3.9733832,2516.8,2516.7,0.12407922]
[1747684158017,5.6212832,2516.8,2516.7,0.12407922]
[1747684158351,3.9734573,2516.7,2516.6,8.361]
[1747684159550,3.97341024,2516.8,2516.6,8.361]
[1747684159745,3.9734573,2516.7,2516.6,8.361]
[1747684160120,1.6406,2517.0,2516.6,8.361]
[1747684160323,3.9734573,2516.7,2516.6,8.361]
[1747684160934,3.97331998,2516.8,2516.7,0.12407003]
[1747684160935,3.97337383,2516.8,2516.7,0.12407003]
[1747684161128,3.97267085,2517.2,2516.7,0.12407003]
[1747684161129,3.97321536,2516.9,2516.7,0.12407003]
[1747684161330,1.6406,2517.2,2516.7,0.97257703]
[1747684161523,3.9731467,2516.9,2516.7,0.97257703]
[1747684162025,3.9731467,2516.9,2516.8,0.12407003]
[1747684163846,1.5824,2517.4,2516.8,0.12407003]
[1747684164045,3.9729026,2517.1,2516.9,1.5997]
[1747684164254,3.9729026,2517.1,2516.9,3.08375161]
[1747684164555,3.9729026,2517.1,2517.0,0.12405156]
[1747684164933,3.97274743,2517.2,2517.0,0.12405156]
[1747684165135,5.55444131,2517.6,2517.1,8.325]
[1747684165523,1.5824,2517.6,2517.1,8.36472558]
[1747684165830,3.97228212,2517.5,2517.2,8.12403601]
[1747684166163,3.97228212,2517.5,2517.3,0.12403601]
[1747684166518,3.97192923,2517.7,2517.3,0.12403601]
[1747684166762,3.97202308,2517.7,2517.3,1.72373601]
[1747684167055,3.97221152,2517.5,2517.4,0.12403601]
[1747684167264,3.97195065,2517.7,2517.4,0.12403601]
[1747684167466,3.97212197,2517.6,2517.4,0.12403601]
[1747684167668,3.97212197,2517.6,2517.3,1.5997]
[1747684168384,3.97189092,2517.7,2517.3,1.5997]
[1747684168385,3.97195662,2517.7,2517.3,4.44266485]
[1747684168537,3.97212022,2517.6,2517.3,4.44266485]
[1747684168738,3.97212022,2517.6,2517.4,0.12402766]
[1747684169173,3.97191204,2517.7,2517.3,4.44266485]
[1747684169467,3.97189733,2517.7,2517.4,8.0]
[1747684169667,3.97162781,2517.9,2517.4,0.848507]
[1747684169878,3.97174644,2517.8,2517.5,0.12402075]
[1747684170050,3.97189557,2517.7,2517.6,8.324]
[1747684170436,3.97177531,2517.8,2517.6,8.324]
[1747684170952,3.97187909,2517.7,2517.6,8.324]
[1747684171168,3.97187909,2517.7,2517.6,13.4099]
[1747684171845,3.97176746,2517.8,2517.6,13.4099]
[1747684172187,1.5824,2518.3,2517.8,3.97163949]
[1747684172393,3.97127001,2518.1,2517.9,6.07799945]
[1747684172752,3.97127001,2518.1,2517.9,5.954]
[1747684172967,3.97092494,2518.4,2517.9,6.70937]
[1747684173168,3.97077509,2518.4,2517.9,6.70937]
[1747684173388,3.97106836,2518.3,2517.9,6.70937]
[1747684173686,3.9711043,2518.2,2517.9,6.70937]
[1747684174588,3.97086167,2518.4,2518.0,1.6601]
[1747684174792,3.97066521,2518.5,2518.1,8.323]
[1747684174993,3.97077509,2518.4,2518.1,8.323]
[1747684175158,3.97109046,2518.2,2518.1,8.323]
[1747684175975,100.0,2518.6,2518.1,8.323]
[1747684176278,3.97084772,2518.4,2518.1,8.323]
[1747684176459,3.97063653,2518.5,2518.1,8.323]
[1747684176460,3.97064832,2518.5,2518.2,15.28631]
[1747684176894,103.97046357,2518.6,2518.3,1.6601]
[1747684176895,100.0,2518.6,2518.3,1.6601]
[1747684177095,100.0,2518.6,2518.3,1.95334006]
[1747684177399,100.0,2518.6,2518.3,9.95334006]
[1747684177569,100.0,2518.6,2518.5,9.6601]
[1747684177774,100.0,2518.6,2518.5,21.41635185]
[1747684177974,100.0,2518.6,2518.5,21.02621685]
[1747684178377,100.0,2518.6,2518.5,24.99683428]
[1747684178902,100.0,2518.6,2518.5,25.12077987]
[1747684180483,100.0,2518.6,2518.5,31.18077987]
[1747684181065,82.97226509,2518.6,2518.5,31.73077987]
[1747684181265,82.19205686,2518.6,2518.5,31.73077987]
[1747684181467,74.47315474,2518.6,2518.5,44.29298802]
[1747684181699,70.02162494,2518.6,2518.5,44.29298802]
[1747684181900,67.58422496,2518.6,2518.5,44.29298802]
[1747684182105,65.60101876,2518.6,2518.5,44.29298802]
[1747684182317,53.00566733,2518.6,2518.5,44.29298802]
[1747684182618,0.023821,2520.0,2519.8,8.0]
[1747684182915,0.023821,2520.0,2519.9,36.554]
[1747684183226,0.023821,2520.0,2519.9,94.41141144]
[1747684183422,0.023821,2520.0,2519.9,98.677881]
[1747684183727,0.023821,2520.0,2519.9,87.054]
[1747684184396,0.023821,2520.0,2519.9,90.037607]
[1747684185110,0.023821,2520.0,2519.9,94.30389562]
[1747684185899,0.01665758,2520.0,2519.9,94.85389562]
[1747684186115,3.96678189,2521.0,2520.5,3.967457]
[1747684186319,5.56549134,2521.3,2520.8,11.96697231]
[1747684186499,1.5992,2521.3,2521.0,8.0]
[1747684186702,3.96646938,2521.2,2521.1,50.5]
[1747684186903,1.5992,2521.6,2521.2,8.0]
[1747684187107,3.96580815,2521.6,2521.4,8.0]
[1747684187408,3.96580815,2521.6,2521.5,58.817]
[1747684187617,3.96580815,2521.6,2521.5,50.5]
[1747684188012,3.96580815,2521.6,2521.5,64.767]
[1747684188909,4.91969947,2521.6,2521.5,58.815]
[1747684189141,4.91969947,2521.6,2521.5,50.5]
[1747684189297,3.96589331,2521.5,2521.4,8.315]
[1747684189717,3.96589331,2521.5,2521.4,58.815]
[1747684189934,3.96584898,2521.6,2521.4,66.815]
[1747684190229,3.96584898,2521.6,2521.5,50.5]
[1747684191134,3.96584898,2521.6,2521.5,58.815]
[1747684191135,6.38669449,2521.6,2521.5,58.815]
[1747684192131,6.93669449,2521.6,2521.5,58.815]
[1747684192423,6.93669449,2521.6,2521.5,50.5]
[1747684192616,3.96652254,2521.1,2521.0,50.5]
[1747684192927,3.96652254,2521.1,2521.0,64.76]
[1747684193123,5.54022254,2521.1,2521.0,64.76]
[1747684193498,3.96652254,2521.1,2521.0,64.76]
[1747684193839,10.50988655,2521.1,2521.0,50.5]
[1747684194054,3.96730937,2520.6,2520.5,58.5]
[1747684194337,3.96730937,2520.6,2520.5,8.0]
[1747684194945,3.96691016,2520.9,2520.5,8.0]
[1747684195095,3.9668266,2521.0,2520.5,8.0]
[1747684195295,3.96692314,2520.9,2520.5,8.0]
[1747684195695,3.96652988,2521.1,2520.6,3.96720853]
[1747684195906,3.96641561,2521.2,2520.6,3.99079779]
[1747684196223,3.96676853,2521.0,2520.7,0.02358833]
[1747684196805,3.96659745,2521.1,2520.7,0.02358833]
[1747684197031,3.96671806,2521.0,2520.7,0.02358833]
[1747684197802,3.96685443,2520.9,2520.7,0.02358833]
[1747684198202,1.6664,2521.4,2520.7,0.02358833]
[1747684198203,3.96658369,2521.1,2520.7,0.02358833]
[1747684198417,3.9669078,2520.9,2520.7,0.02358833]
[1747684199230,3.9669946,2520.8,2520.7,0.02358833]
[1747684199447,2.29334551,2521.6,2520.7,0.02358833]
[1747684199735,3.9669946,2520.8,2520.7,0.02358833]
[1747684200037,3.9669946,2520.8,2520.7,8.30358833]
[1747684200343,1.5466,2522.4,2521.2,8.0]
[1747684200549,3.96463545,2522.3,2521.4,8.0]
[1747684200751,0.55112355,2522.3,2521.6,8.0]
[1747684200901,1.5466,2522.4,2521.7,4.00512249]
[1747684201237,1.5466,2522.4,2521.5,12.24582865]
[1747684201238,3.96508624,2522.1,2521.6,8.30130557]
[1747684201408,3.96525163,2522.0,2521.8,8.0]
[1747684201611,3.96369838,2522.9,2521.8,8.0]
[1747684201813,1.6504,2523.6,2522.1,8.0]
[1747684202012,1.6504,2523.6,2521.9,0.55]
[1747684202013,0.03967239,2523.5,2522.3,8.0]
[1747684202203,3.96338982,2523.1,2522.5,8.0]
[1747684202545,3.96293293,2523.4,2522.5,8.0]
[1747684202835,3.96293293,2523.4,2522.4,14.27]
[1747684202836,3.96432111,2522.5,2522.4,14.27]
[1747684203048,3.96432111,2522.5,2522.4,18.451542]
[1747684203252,3.96432111,2522.5,2522.4,22.55]
[1747684203448,3.96432111,2522.5,2522.4,14.27]
[1747684203959,5.61472111,2522.5,2522.4,14.27]
[1747684204404,3.96432111,2522.5,2522.4,14.27]
[1747684205796,1.6369,2523.2,2522.5,8.0]
[1747684206097,1.6369,2523.2,2522.6,0.03963674]
[1747684206349,3.96371283,2522.9,2522.6,0.03963673]
[1747684206521,1.6369,2523.2,2522.5,8.0]
[1747684206710,3.96387023,2522.8,2522.5,8.0]
[1747684206916,3.96400681,2522.7,2522.6,3.4914]
[1747684207116,3.96416395,2522.6,2522.5,8.0]
[1747684207320,3.96416395,2522.6,2522.5,21.467]
[1747684207523,3.96416395,2522.6,2522.5,18.5609]
[1747684207709,3.96416395,2522.6,2522.5,16.29555048]
[1747684207914,6.39388275,2522.6,2522.5,0.01855048]
[1747684208213,6.94388275,2522.6,2522.5,0.01855048]
[1747684208441,5.34665514,2522.6,2522.5,0.01855048]
[1747684208642,3.96557877,2521.7,2521.6,14.265]
[1747684208849,3.96557877,2521.7,2521.6,30.542]
[1747684209150,3.96557877,2521.7,2521.6,22.542]
[1747684210552,3.965444,2521.8,2521.7,8.0]
[1747684210719,3.965444,2521.8,2521.7,8.1238099]
[1747684212429,3.965444,2521.8,2521.7,0.1238099]
[1747684212761,6.38901704,2521.8,2521.7,0.1238099]
[1747684213063,3.96573604,2521.6,2521.5,8.276]
[1747684215572,3.96560302,2521.7,2520.9,8.0]
[1747684215891,3.96652254,2521.1,2521.0,8.277]
[1747684216197,3.96652254,2521.1,2521.0,8.40085356]
[1747684216346,3.96624607,2521.3,2521.0,17.21504556]
[1747684216551,3.96612861,2521.4,2521.1,0.12385356]
[1747684216744,3.96622291,2521.3,2521.1,0.12385356]
[1747684217159,3.96589621,2521.5,2521.2,0.14345356]
[1747684217387,3.9659834,2521.5,2521.2,0.14345356]
[1747684217588,3.96582564,2521.6,2521.3,0.12385356]
[1747684217922,3.96592428,2521.5,2521.4,0.12385356]
[1747684218064,3.96592428,2521.5,2521.4,8.40085356]
[1747684219008,1.6626,2522.1,2521.4,8.40085356]
[1747684219170,3.96568141,2521.7,2521.4,8.42045356]
[1747684219365,3.96510705,2522.0,2521.5,0.12385356]
[1747684219591,3.96573604,2521.6,2521.5,0.12385356]
[1747684220309,3.9647102,2522.3,2521.8,3.96529721]
[1747684220514,5.5526939,2522.9,2522.0,8.0196]
[1747684220667,3.96415562,2522.7,2522.0,11.0196]
[1747684220868,3.96425261,2522.6,2522.1,8.0]
[1747684221095,3.96424036,2522.6,2522.1,0.48939822]
[1747684221284,3.96424036,2522.6,2522.2,0.12385356]
[1747684221494,3.96337838,2523.1,2522.4,8.0]
[1747684221821,3.96402403,2522.7,2522.5,8.41945356]
[1747684222104,3.96402403,2522.7,2522.6,2.800203]
[1747684222404,3.96416395,2522.6,2522.5,0.12385356]
[1747684222583,3.96463545,2522.3,2522.2,0.0196]
[1747684222779,3.96463545,2522.3,2522.2,8.0196]
[1747684222983,3.96463545,2522.3,2522.2,19.93228288]
[1747684223180,3.96463545,2522.3,2522.2,19.93618288]
[1747684223817,3.96454145,2522.4,2522.2,19.98048288]
[1747684223976,3.9638347,2522.9,2522.3,7.184858]
[1747684224172,1.589,2523.0,2522.3,8.0]
[1747684224479,3.9641423,2522.7,2522.4,0.12378288]
[1747684225008,3.9639592,2522.8,2522.4,0.12378288]
[1747684225301,3.96400681,2522.7,2522.6,8.0]
[1747684225509,3.96394052,2522.8,2522.6,8.0]
[1747684225719,3.96370821,2522.9,2522.6,8.0]
[1747684225920,3.96347513,2523.1,2522.6,11.96407141]
[1747684226129,3.96328496,2523.2,2522.8,8.0196]
[1747684226276,3.96299887,2523.4,2523.0,8.0]
[1747684226476,0.20681363,2523.9,2523.0,8.0]
[1747684226477,0.20681363,2523.9,2523.2,8.0]
[1747684226735,3.96306424,2523.3,2523.2,8.0]
[1747684227007,3.9622791,2523.8,2523.2,8.0]
[1747684227008,3.96298797,2523.4,2523.2,8.0]
[1747684227212,3.9622791,2523.8,2523.2,8.12373307]
[1747684227399,0.20681363,2523.9,2523.3,0.0196]
[1747684227580,3.96249187,2523.7,2523.3,0.31003143]
[1747684227775,3.96249187,2523.7,2523.1,8.257]
[1747684227776,3.96280197,2523.5,2523.4,0.12373307]
[1747684228318,4.91703148,2523.5,2523.4,0.12373307]
[1747684228488,3.96306424,2523.3,2523.2,8.256]
[1747684229909,3.96384969,2522.8,2522.7,16.71902978]
[1747684230512,3.96384969,2522.8,2522.7,0.46302978]
[1747684230724,6.38207903,2522.8,2522.7,3.46302978]
[1747684230877,6.93207903,2522.8,2522.7,0.46302978]
[1747684231075,3.96494984,2522.1,2522.0,0.46302978]
[1747684232582,3.96494984,2522.1,2522.0,0.79403002]
[1747684233415,3.96494984,2522.1,2522.0,0.46302978]
[1747684233795,3.96510705,2522.0,2521.9,8.255]
[1747684235736,3.96510705,2522.0,2521.9,11.255]
[1747684235894,5.55880705,2522.0,2521.9,11.255]
[1747684239029,3.96589331,2521.5,2521.4,8.256]
[1747684240423,3.96565631,2521.7,2521.5,8.0]
[1747684240627,3.96564676,2521.7,2521.5,8.0]
[1747684240922,3.96556118,2521.8,2521.5,8.0]
[1747684241085,1.5918,2522.3,2521.5,8.0]
[1747684241281,4.75668934,2522.8,2521.6,4.00529779]
[1747684241282,3.96503146,2522.1,2521.6,4.00529779]
[1747684241538,3.96513374,2522.0,2521.5,11.9658381]
[1747684241688,1.5918,2522.6,2521.9,0.0196]
[1747684241894,1.5918,2523.2,2522.1,8.0]
[1747684242088,3.96415373,2522.7,2522.1,8.0]
[1747684242289,3.96370783,2522.9,2522.2,0.0196]
[1747684242489,3.96370783,2522.9,2522.4,11.96440221]
[1747684242726,3.96370783,2522.9,2522.5,16.256]
[1747684243016,3.96345697,2523.1,2522.7,8.0]
[1747684243221,1.5918,2523.5,2522.7,8.0]
[1747684243428,3.96335352,2523.2,2522.7,11.9639613]
[1747684243669,3.96301199,2523.4,2522.7,11.9639613]
[1747684243818,3.96302079,2523.4,2522.9,8.0]
[1747684244136,3.96247486,2523.7,2523.0,8.256]
[1747684244317,3.96353547,2523.0,2522.9,8.256]
[1747684245435,3.96384969,2522.8,2522.7,8.256]
[1747684246435,3.96447827,2522.4,2522.3,14.262]
[1747684248208,3.96432111,2522.5,2522.3,14.262]
[1747684248457,3.96428393,2522.6,2522.3,14.262]
[1747684248746,3.96438911,2522.5,2522.3,14.262]
[1747684249446,3.96447827,2522.4,2522.3,14.262]
[1747684249649,3.96417674,2522.6,2522.3,14.262]
[1747684249650,3.9644066,2522.5,2522.3,14.262]
[1747684250023,3.96388049,2522.8,2522.4,8.03964209]
[1747684250223,1.6027,2523.1,2522.4,8.0]
[1747684250540,3.96410858,2522.7,2522.4,8.0]